Cogmind - Beta 13 X1 @@@ ROGUE MODE // 2023.12.09 @ 01:39:57 Player: alice_fexa Result: Destroyed by S-10 Pest with Light Assault Rifle Performance ------------- Evolutions (0) 0 Regions Visited (2) 400 Robots Destroyed (18) 90 Value Destroyed (464) 464 Prototype IDs (3) 60 Alien Tech Used (0) 0 Bonus (0) 0 TOTAL SCORE: 1014 Bonus ------- None Cogmind --------- Core Integrity 0/250 Matter 85/300 Energy 250/250 System Corruption 0% Temperature Cool (30) Movement Treading (160) Location -10/Mines Parts ------- > --- POWER (1) -------- Ion Engine > --- PROPULSION (2) --- Light Treads Light Treads > --- UTILITY (2) ------ Disposable Heat Sink Large Storage Unit > --- WEAPON (2) ------- Improved Light Cannon Improved Light Cannon > --- INVENTORY (15) --- Light Ion Engine Light Ion Engine Light Treads Wheel Disposable Heat Sink High-capacity Matter Pod (200) Signal Interpreter Heavy EM Pulse Gun Heavy EM Pulse Gun Heavy EM Pulse Gun Medium Laser Improved Light Cannon Improved Light Cannon Peak State ------------ > --- POWER ------------ Ion Engine > --- PROPULSION ------- Light Treads Light Treads > --- UTILITY ---------- Disposable Heat Sink Large Storage Unit > --- WEAPON ----------- Improved Light Cannon Improved Light Cannon > --- INVENTORY -------- Light Ion Engine Light Ion Engine Light Treads Wheel Disposable Heat Sink High-capacity Matter Pod Signal Interpreter Heavy EM Pulse Gun Heavy EM Pulse Gun Heavy EM Pulse Gun Medium Laser Improved Light Cannon Improved Light Cannon Rocket Launcher Rocket Launcher [Rating: 12] Favorites ----------- Power Ion Engine Engine Ion Engine Propulsion Light Treads Treads Light Treads Wheel Compact Wheel Utility Large Storage Unit Device Disposable Heat Sink Storage Large Storage Unit Weapon Light Assault Rifle Energy Gun Medium Laser Ballistic Gun Light Assault Rifle Ballistic Cannon Improved Light Cannon Launcher Rocket Launcher Build | -11 -10 -10 ------- Run | Jun Mat Min Slots Evolved . | . . . Power . | . . . Propulsion . | . . . Utility . | . . . Weapon . | . . . Parts Attached 25 | 7 14 4 Power 4 | 2 2 . Engine 4 | 2 2 . Core . | . . . Reactor . | . . . Propulsion 5 | 2 3 . Treads 4 | 1 3 . Leg . | . . . Wheel 1 | 1 . . Hover . | . . . Flight . | . . . Utility 5 | 1 4 . Device 3 | . 3 . Storage 2 | 1 1 . Processor . | . . . Hackware . | . . . Protection . | . . . Artifact . | . . . Weapon 11 | 2 5 4 Energy Gun 3 | . 3 . Energy Cannon . | . . . Ballistic Gun 2 | 2 . . Ballistic Cannon 4 | . 2 2 Launcher 2 | . . 2 Special Weapon . | . . . Impact Weapon . | . . . Slashing Weapon . | . . . Piercing Weapon . | . . . Special Melee Weapon . | . . . Unidentified Prototypes . | . . . Parts Lost 5 | . 3 2 Power 1 | . 1 . Propulsion 1 | . 1 . Utility . | . . . Weapon 3 | . 1 2 Highest Loss Streak 3 | . 3 2 To Critical Strikes . | . . . Average Slot Usage (%) 93 | . 93 94 Engine 12 | . 12 14 Treads 25 | . 24 28 Wheel 2 | . 2 . Device 10 | . 9 14 Storage 14 | . 14 14 Energy Gun 7 | . 8 . Ballistic Gun 11 | . 13 . Ballistic Cannon 7 | . 6 16 Naked Turns . | . . . Heaviest Build 34 | 13 34 34 Greatest Support 40 | 20 40 40 Greatest Overweight (x) 1 | . 1 . Average Overweight (x) . | . . . Largest Inventory Capacity 15 | 8 15 15 Average Capacity 14 | 6 14 15 Most Carried 15 | 3 15 15 Average Carried 11 | 1 11 14 Final Capacity 15 | 8 15 15 Final Carried 15 | 3 15 13 Class Distribution -------------------- 100% | Mutant Dominant Class ---------------- Mutant | -10/Materials Mutant | -10/Mines Resources | -11 -10 -10 ----------- Run | Jun Mat Min Matter Collected 822 | 244 518 60 Remotely . | . . . Salvage Created 607 | . 533 74 Parts 29 | . 27 2 Haulers Intercepted 1 | . 1 . Recyclers Shooed 1 | . 1 . Parts Field Recycled . | . . . Retrieved Matter . | . . . Parts Self-Destructed . | . . . Prevented . | . . . Kills | -11 -10 -10 ------- Run | Jun Mat Min Combat Hostiles Destroyed 22 | . 9 13 Guns 7 | . 7 . Cannons 6 | . 2 4 AOE 9 | . . 9 Classes Destroyed 7 | . 5 2 Worker 2 | . 2 . Builder 1 | . 1 . Hauler 1 | . 1 . Watcher 2 | . 2 . Swarmer 1 | . . 1 Grunt 11 | . 9 2 Assembled 10 | . . 10 Best Kill Streak 10 | . 3 10 Combat Bots Only 10 | . 2 10 Max Kills in Single Turn 2 | . 1 2 Gunslinging . | . . . Exploded 2 | . . 2 Melee . | . . . Uniques/NPCs Destroyed . | . . . Combat | -11 -10 -10 -------- Run | Jun Mat Min Damage Taken 1352 | . 701 651 Core 251 | . 112 139 Absorbed by Shields . | . . . Regen/Repaired (Parts) 169 | . 169 . Core Remaining (%) 100 | 100 . . Volleys Fired 89 | . 67 22 Largest 2 | . 2 2 Hottest 78 | . 78 78 Shots Fired 164 | . 134 30 Gun 128 | . 128 . Cannon 21 | . 6 15 Launcher 15 | . . 15 Special . | . . . Kinetic 118 | . 103 15 Thermal 31 | . 31 . Explosive 15 | . . 15 Electromagnetic . | . . . Robot Hit Streak 11 | . 11 6 Robot Miss Streak 4 | . 4 2 Penetration Max . | . . . Secondary Targets 1 | . 1 . Max Gunslinging Chain 1 | . 1 . Shots Hit Robots 110 | . 92 18 Core Hits 52 | . 29 23 Critical Kills . | . . . Critical Parts Destroyed 1 | . 1 . Critical Strikes 3 | . 2 1 Burn 1 | . 1 . Destroy 1 | . 1 . Blast 1 | . . 1 Melee Attacks . | . . . Impact . | . . . Slashing . | . . . Piercing . | . . . Sneak Attacks . | . . . Combat Hostiles . | . . . Follow-up Attacks . | . . . Damage Inflicted 2099 | . 1002 1097 Guns 924 | . 924 . Cannons 282 | . 75 207 Explosions 890 | . . 890 Melee . | . . . Ramming 3 | . 3 . Kinetic 934 | . 727 207 Thermal 272 | . 272 . Explosive 890 | . . 890 Electromagnetic . | . . . Impact . | . . . Slashing . | . . . Piercing . | . . . Highest Corruption . | . . . Average Corruption . | . . . Corruption Purged . | . . . Corruption Blocked . | . . . Overload Shots . | . . . Overflow Damage 28 | . . 28 Projectiles . | . . . Explosions 28 | . . 28 Melee . | . . . Knockbacks 4 | . 1 3 Impact . | . . . Kinetic 4 | . 1 3 Secondary . | . . . Self-Inflicted Damage 196 | . . 196 Shots 7 | . . 7 Rammed . | . . . Targets Rammed 1 | . 1 . Kicked . | . . . Crushed 1 | . 1 . Highest Temperature 172 | . 172 144 Average Temperature 36 | . 31 57 Received Heat Transfer 486 | . 432 54 Siege Activations . | . . . Robots Corrupted . | . . . Combat Hostiles . | . . . Parts Fried . | . . . Impact Corruptions . | . . . Robots Melted . | . . . Combat Hostiles . | . . . Parts Melted . | . . . Heat Transferred 781 | . 781 . Parts Sabotaged . | . . . Parts Stolen . | . . . Parts Stripped . | . . . Power Chain Reactions . | . . . Missiles Intercepted . | . . . Alert | -11 -10 -10 ------- Run | Jun Mat Min Peak Influence 146 | . 119 146 Initial 4 | . . 4 Average 45 | . 42 91 Maximum Alert Level . | . . . Low Security (%) 100 | 100 100 100 Level 1 . | . . . Level 2 . | . . . Level 3 . | . . . Level 4 . | . . . Level 5 . | . . . High Security . | . . . Max Security . | . . . Squads Dispatched 3 | . 3 . Investigation 1 | . 1 . Extermination . | . . . Reinforcement 2 | . 2 . Assault . | . . . Garrison . | . . . Intercept . | . . . Searches Triggered . | . . . Construction Impeded . | . . . Haulers Reinforced . | . . . Active Scanning Responses . | . . . Cargo Convoy Interrupts . | . . . Stealth | -11 -10 -10 --------- Run | Jun Mat Min Distress Signals 1 | . 1 . Communications Jammed . | . . . Distress Signals . | . . . Times Spotted 30 | . 16 14 Peak Tracking Total 6 | . 3 6 Tactical Retreats . | . . . Traps | -11 -10 -10 ------- Run | Jun Mat Min Traps Triggered 2 | . 2 . Indirectly . | . . . Trap Hack Attempts . | . . . Triggered . | . . . Disarmed . | . . . Reprogrammed . | . . . Reused . | . . . Traps Extracted . | . . . Installed . | . . . Triggered . | . . . Machines | -11 -10 -10 ---------- Run | Jun Mat Min Machines Disabled . | . . . Max in Single Turn . | . . . Machines Repaired . | . . . Machines Sabotaged . | . . . Overloaded Fab Kills . | . . . Hacking | -11 -10 -10 --------- Run | Jun Mat Min Machines Accessed 8 | . 8 . Terminals 6 | . 6 . Fabricators . | . . . Repair Stations 1 | . 1 . Recycling Units 1 | . 1 . Scanalyzers . | . . . Garrison Access . | . . . Total Hacks 26 | . 26 . Successful 12 | . 12 . Failed 14 | . 14 . Catastrophic 1 | . 1 . Database Lockouts . | . . . Manual 15 | . 15 . Terminals 20 | . 20 . Fabricators . | . . . Repair Stations 4 | . 4 . Recycling Units 2 | . 2 . Scanalyzers . | . . . Garrison Access . | . . . Terminal Hacks 5 | . 5 . Robot Analysis 1 | . 1 . Prototype ID Bank 1 | . 1 . Unreport Threat 1 | . 1 . Locate Traps 1 | . 1 . Zone Layout 1 | . 1 . Fabricator Hacks . | . . . Repair Station Hacks 4 | . 4 . Scan Component 2 | . 2 . Repair 2 | . 2 . Recycling Unit Hacks 1 | . 1 . Retrieve Components 1 | . 1 . Scanalyzer . | . . . Garrison Access Hacks . | . . . Unauthorized Hacks 2 | . 2 . Terminals 2 | . 2 . Botnet 2 | . 2 . Fabricators . | . . . Repair Stations . | . . . Recycling Units . | . . . Scanalyzers . | . . . Garrison Access . | . . . Data Cores Recovered . | . . . Used . | . . . Hacking Detections 6 | . 6 . Full Trace Events . | . . . Feedback Events . | . . . Feedback Blocked . | . . . Robot Schematics Acquired . | . . . Robots Built . | . . . Authchips . | . . . Time . | . . . Total Robot Build Rating . | . . . Part Schematics Acquired . | . . . Parts Built . | . . . Authchips . | . . . Time . | . . . Total Part Build Rating . | . . . Parts Repaired 2 | . 2 . Time 52 | . 52 . Parts Recycled . | . . . Recycled Matter . | . . . Retrieved Matter . | . . . Retrieved Components 8 | . 8 . Parts Scanalyzed . | . . . Part Schematics Acquired . | . . . Parts Damaged . | . . . Bothacking | -11 -10 -10 ------------ Run | Jun Mat Min Used RIF Installer . | . . . Robots Hacked . | . . . Non-combat . | . . . Combat . | . . . Robot Hacks Applied . | . . . Relay Couplers Released . | . . . Fabnet Peak Effective % . | . . . Robots Rewired . | . . . Allies Hacked . | . . . Hacks Repelled . | . . . Allies | -11 -10 -10 -------- Run | Jun Mat Min Total Allies . | . . . Largest Group . | . . . Highest-Rated Group . | . . . Highest-Rated Ally . | . . . Total Orders . | . . . Ally Attacks . | . . . Total Damage . | . . . Kills . | . . . Allies Corrupted . | . . . Allies Melted . | . . . Intel | -11 -10 -10 ------- Run | Jun Mat Min Robot Analysis Total 1 | . 1 . Derelict Logs Recovered . | . . . Drone Launches . | . . . Drone Recoveries . | . . . Exploration | -11 -10 -10 ------------- Run | Jun Mat Min Turns Passed 1604 | 55 1386 163 Spaces Moved 734 | 40 630 64 Core 4 | 4 . . Treads 615 | 9 542 64 Legs . | . . . Wheels 115 | 27 88 . Hover . | . . . Flight . | . . . Fastest Speed 50 | 50 100 160 Average Speed 151 | 108 152 160 Slowest Speed 160 | 160 160 160 Overloaded Moves . | . . . Propulsion Burnouts . | . . . Robots Hopped . | . . . Cave-ins Triggered . | . . . Exploration Rate (%) 32 | 3 77 16 Regions Visited 2 Branch Regions 1 Pre-discovered Areas . | . . . Known Exits Taken . | . . . Unknown Exits Taken 2 | 1 1 . Scrap Searched . | . . . Spaces Dug . | . . . Terrain Destroyed 124 | . . 124 Melee . | . . . Projectile 1 | . . 1 AOE 123 | . . 123 Terrain Rammed . | . . . Walls Destroyed . | . . . Machines Disabled . | . . . Actions | -11 -10 -10 --------- Run | Jun Mat Min Total 1078 | 48 936 94 Wait 193 | . 189 4 Move 732 | 39 629 64 Hop . | . . . Pick Up 23 | 2 21 . Fast Attach 12 | 6 6 . Attach 6 | . 4 2 Detach 3 | . 3 . Swap 7 | 1 4 2 Drop 12 | . 12 . Fire 89 | . 67 22 Melee . | . . . Ram . | . . . Kick . | . . . Crush 1 | . 1 . Escape Stasis . | . . . Rewire . | . . . Trap . | . . . Miscellaneous . | . . . Route ------- -11/Junkyard -10/Materials (discovered 3 exits: [*Mat x2] / [*Min]) -10/Mines History --------- Turn | Location | Event 16 | -11/Junkyard | Discovered new exit (range 16) 56 | -11/Junkyard | Entered Materials 337 | -10/Materials | Build established: Mutant 343 | -10/Materials | Lost 3 parts (1p1n1w) 395 | -10/Materials | Discovered new exit (range 13) 769 | -10/Materials | Discovered new exit (range 14) 1243 | -10/Materials | Discovered new exit (range 15) 1396 | -10/Materials | Repaired Lgt. Treads 1423 | -10/Materials | Repaired Lgt. Treads 1442 | -10/Materials | Entered Mines 1451 | -10/Mines | Core integrity fell below 50% 1470 | -10/Mines | Met a Derelict bent on vengeance 1503 | -10/Mines | Assembled infested the area 1508 | -10/Mines | Assisted by a Guerilla fighting off Assembled 1539 | -10/Mines | Core integrity fell below 20% 1575 | -10/Mines | Destroyed 10 combat bots 1605 | -10/Mines | Destroyed by S-10 Pest with Light Assault Rifle Last Messages --------------- 01538_ Destroyed Asb. Hover Unit. 01538_ as-93952 destroyed. 01540_ as-81116 destroyed. 01542_ The unstable cave ceiling collapses. 01552_ Rocket Launcher destroyed. 01554_ as-93322 suffers critical hit (Blast). 01554_ as-93322 destroyed. 01564_ The unstable cave ceiling collapses. 01566_ U-05 Engineer lays Concrete. 01570_ The unstable cave ceiling collapses. 01571_ U-05 Engineer builds a Wall. 01572_ The unstable cave ceiling collapses. 01575_ U-05 Engineer lays Concrete. 01580_ U-05 Engineer builds a Wall. 01584_ U-05 Engineer lays Concrete. 01587_ U-05 Engineer builds a Wall. 01590_ U-05 Engineer lays Concrete. 01600_ S-10 Pest knocked back. 01600_ S-10 Pest destroyed. 01603_ S-10 Pest knocked back. Map ----- +----------------------------------------------------+ | ???????????????????????# # ?? | | ??????????????????????## ?? | | ??????????????????????# % # # ?? | | ??????????????????????# #?? | | ???????????????????????# #?? | | ????????????????????????# # #?? | | ?????????????????????##### # ##? | | ?????????????????# # #? | | ????????????????????????## ## #? | | ?????????????????????????# #? | | ?????????????????????????## # #? | | ?????????????????????????## #? | | ?????????????????????????# # #? | | ?????????????????????????# # # #? | | ?????????????????????????# #? | | ?????????????????????????### ##? | | ??????????????????????????### # #?? | | ????????????????????????????##t #?? | | ???????????????????????????## #?? | | ???????????????????????????# # ##?? | | ??????????????????????????## ####??? | | ??????????????????????????# ##????? | | ?????????????????????????## ##???? | | ????????????????????????## #???? | | ????????????""??????????# #???? | | ??????? """ ########@ #???? | | ????????# [ % ##???? | | ????????????# s## ##????? | | ????????????# #### ########?????? | | ????????????# ?????# #????????????? | | ????????????# ???###### ###??????????? | | ?????????????????# % #??????????? | | ?????????????????# %[#??????????? | | ?????????????????# % ##?????????? | | ?????????????????# "#?????????? | | ?????????????????# ##?????????? | | ?????????????????# #??????????? | | ?????????????????# #??????????? | | ?????????????????# #??????????? | | ?????????????????# ??????????? | | ?????????????????#""" ?????????? | | ?????????????????#""" ###????????? | | ?????????????????#""" #??????????? | | ?????????????????? #??????????? | | ???????????????????########??????????? | | ?????????????????????????????????????? | | ?????????????????????????????????????? | | | | | | | +----------------------------------------------------+ Best States ------------- Heat Dissipation 25 Coolant Potential 50 Energy Generation 10 Energy Capacity 250 Matter Stores 300 Matter Capacity 300 Sight Range 16 Terrain Scan Density 10 Evasion (%) 40 Recoil Reduction 2 Item Schematics ----------------- None Robot Schematics ------------------ None Fabricated ------------ Nothing Alien Tech Used ----------------- None Achievements -------------- None Challenges ------------ None Game ------ Seed GammaInsulatedRedistributor Manual? 0 Play Time 00:08:56 Cumulative 1285.0 hours Start 2023.12.09 @ 01:32:22 End 2023.12.09 @ 01:39:57 Sessions 1 Manual Loads 0 Difficulty Rogue Special Mode None Game No. 929 Rogue 889 Adventurer 40 Explorer 0 Win Type - Total 153 Types 74/7/47/2/1/4/15/2/1 Lore% 93 Gallery% 96 Achievement% 83 Wizard Run 0 Options --------- ASCII 0 Keyboard 0 Movement Numpad Keybinds 0 Fullscreen 0 Font 20/Terminus Map View 76x50 Tactical HUD 1 Map Filters NONE Filters NONE Steam 1 RUN: 62aca344-e787-47d5-96d9-b18446709948